bitfinex-derivatives/quotes_BNBF0:USTF0_20250810
["timestamp","ask_amount","ask_price","bid_price","bid_amount"]
[1754795819431,0.82233968,811.18,809.64,2.74852257]
[1754795820026,0.82233968,811.18,809.63,2.74852257]
[1754795820928,0.5,811.14,809.63,2.74852257]
[1754795821126,0.82233968,811.13,809.63,2.74852257]
[1754795821326,0.5,811.08,809.63,2.74852257]
[1754795821524,0.5,811.08,809.67,2.74852257]
[1754795821727,0.82220215,811.07,809.67,2.74852257]
[1754795821929,0.82220215,811.06,809.48,2.74852257]
[1754795822130,0.5,811.08,809.48,2.74852257]
[1754795822528,0.8227088,811.07,809.54,2.74852257]
[1754795822730,0.8227088,811.06,809.54,2.74852257]
[1754795822929,0.5,811.08,809.54,2.74852257]
[1754795823127,0.82328888,811.07,809.53,2.74852257]
[1754795823331,0.82328888,811.06,809.53,2.74852257]
[1754795823531,0.82328888,811.05,809.56,2.74852257]
[1754795823731,0.5,811.08,809.56,2.74852257]
[1754795823930,0.397,811.06,809.56,2.74852257]
[1754795824131,0.82330454,811.05,809.56,2.74852257]
[1754795824332,0.82330454,811.04,809.56,2.74852257]
[1754795824527,0.5,810.94,809.46,2.74852257]
[1754795824729,0.82363408,810.93,809.34,2.74852257]
[1754795824934,0.82363408,810.92,809.34,2.74852257]
[1754795825132,0.5,810.86,809.34,2.74852257]
[1754795825333,0.5,810.86,809.28,2.74852257]
[1754795825534,0.21515082,810.49,809.28,2.74852257]
[1754795825927,0.21515082,810.49,809.27,2.74852257]
[1754795826330,0.21515082,810.49,809.0,1.469]
[1754795828431,0.21515082,810.49,809.05,2.74852257]
[1754795829036,0.21515082,810.49,809.08,2.74852257]
[1754795829536,0.21515082,810.49,809.13,2.74852257]
[1754795830037,0.21515082,810.49,809.02,2.74852257]
[1754795830632,0.21515082,810.49,809.01,2.74852257]
[1754795833240,0.21515082,810.49,809.0,1.469]
[1754795834640,0.21515082,810.49,809.02,2.74852257]
[1754795835336,0.21515082,810.49,809.01,2.74852257]
[1754795835736,0.21515082,810.49,809.31,2.74852257]
[1754795836240,0.21515082,810.49,809.33,2.74852257]
[1754795836838,0.21515082,810.49,809.32,2.74852257]
[1754795839040,0.21515082,810.49,809.42,2.74852257]
[1754795839840,0.21515082,810.49,809.63,2.74852257]
[1754795840338,0.344,811.11,809.38,2.74852257]
[1754795840537,0.2148818,810.62,809.38,2.74852257]
[1754795840838,0.2148818,810.62,809.39,2.74852257]
[1754795841542,0.2148818,810.62,809.38,2.74852257]
[1754795842943,0.2148818,810.62,809.27,2.74852257]
[1754795844139,0.2148818,810.62,809.28,2.74852257]
[1754795847847,0.2148818,810.62,809.27,2.74852257]
[1754795848243,0.2148818,810.62,809.28,2.74852257]
[1754795848753,0.2148818,810.62,809.2,1.446]
[1754795848942,1.10577159,811.92,809.2,1.446]
[1754795848943,0.5,811.3,809.2,1.446]
[1754795849150,0.21488777,810.73,809.2,1.446]
[1754795853053,0.21488777,810.73,809.54,2.74852257]
[1754795854055,0.21488777,810.73,809.53,2.74852257]
[1754795856054,0.21488777,810.73,809.57,2.74852257]
[1754795857557,0.21488777,810.73,809.56,2.74852257]
[1754795858057,0.21488777,810.73,809.59,2.74852257]
[1754795858860,0.21488777,810.73,809.72,2.74852257]
[1754795859162,0.21488777,810.73,809.71,2.74852257]
[1754795860661,0.21488777,810.73,809.7,2.74852257]
[1754795861260,0.21488777,810.73,809.78,2.74852257]
[1754795861659,0.21488777,810.73,809.74,2.74852257]
[1754795862766,0.21488777,810.73,809.82,2.74852257]
[1754795863464,0.21488777,810.73,809.8,2.74852257]
[1754795863863,0.21488777,810.73,809.78,2.74852257]
[1754795864765,0.21488777,810.73,809.73,2.74852257]
[1754795865461,0.21488777,810.73,809.8,2.74852257]
[1754795865960,0.21488777,810.73,809.78,2.74852257]
[1754795866564,0.21488777,810.73,809.45,3.85178554]
[1754795866565,0.21488777,810.73,809.82,2.74852257]
[1754795866768,0.5,811.38,809.82,2.74852257]
[1754795866967,0.21482874,810.82,809.82,2.74852257]
[1754795867267,0.83159822,811.82,809.82,2.74852257]
[1754795867460,0.21482277,810.84,809.84,2.74852257]
[1754795867665,0.5,811.38,809.84,2.74852257]
[1754795867965,0.2148115,810.91,809.73,2.74852257]
[1754795868165,0.5,811.44,809.73,2.74852257]
[1754795868564,0.21481614,810.91,809.71,2.74852257]
[1754795868770,0.352,811.42,809.71,2.74852257]
[1754795868969,0.21481084,810.95,809.71,2.74852257]
[1754795869175,0.21481084,810.95,809.76,2.74852257]
[1754795869680,0.21481084,810.95,809.8,2.74852257]
[1754795870074,0.21481084,810.95,809.79,2.74852257]
[1754795870573,0.21481084,810.95,809.76,2.74852257]
[1754795871574,0.21481084,810.95,809.74,2.74852257]
[1754795872373,0.21481084,810.95,809.54,2.74852257]
[1754795872879,0.21481084,810.95,809.35,2.74852257]
[1754795873372,0.21481084,810.95,809.34,2.74852257]
[1754795874971,0.21481084,810.95,809.2,1.446]
[1754795874972,0.21481084,810.95,809.36,2.74852257]
[1754795875472,0.21481084,810.95,809.35,2.74852257]
[1754795876372,0.21481084,810.95,809.36,2.74852257]
[1754795876879,0.21481084,810.95,809.4,3.85178554]
[1754795877076,0.21481084,810.95,809.74,2.74852257]
[1754795877477,0.21481084,810.95,809.89,2.74852257]
[1754795877978,0.21481084,810.95,809.81,2.74852257]
[1754795878477,0.21481084,810.95,809.8,2.74852257]
[1754795879079,0.21481084,810.95,809.89,2.74852257]
[1754795879679,0.21481084,810.95,809.87,2.74852257]
[1754795880179,0.21481084,810.95,809.89,2.74852257]
[1754795880681,0.21481084,810.95,809.92,2.74852257]
[1754795881877,0.5,811.6,809.91,2.74852257]
[1754795882080,0.2147439,811.08,809.91,2.74852257]
[1754795882381,0.5,811.6,809.66,2.74852257]
[1754795882580,0.21477173,811.08,809.66,2.74852257]
[1754795883179,0.21477173,811.08,809.64,2.74852257]
[1754795884383,0.21477173,811.08,809.69,2.74852257]
[1754795885483,0.21477173,811.08,809.72,2.74852257]
[1754795885679,0.5,811.7,809.72,2.74852257]
[1754795885881,0.348,811.68,809.75,2.74852257]
[1754795886078,0.21473462,811.17,809.75,2.74852257]
[1754795886280,0.21473462,811.17,809.79,2.74852257]
[1754795886778,0.21473462,811.17,809.83,2.74852257]
[1754795887785,0.21473462,811.17,809.81,2.74852257]
[1754795888280,0.21473462,811.17,809.89,2.74852257]
[1754795888884,0.21473462,811.17,809.84,2.74852257]
[1754795889385,0.21473462,811.17,809.83,2.74852257]
[1754795889987,0.21473462,811.17,809.82,4.14152257]
[1754795890483,0.21473462,811.17,809.82,1.393]
[1754795894585,0.21473462,811.17,809.82,4.14152257]
[1754795895089,0.5,811.76,809.82,4.14152257]
[1754795895490,0.21473462,811.31,809.82,4.14152257]
[1754795895686,0.21473462,811.31,809.89,2.74852257]
[1754795896688,0.21473462,811.31,810.08,2.74852257]
[1754795897293,0.21473462,811.31,810.03,2.74852257]
[1754795897690,0.21473462,811.31,810.07,2.74852257]
[1754795898291,0.21473462,811.31,810.13,2.74852257]
[1754795898795,0.21473462,811.31,810.04,2.74852257]
[1754795899993,0.21473462,811.31,810.05,2.74852257]
[1754795900496,0.21473462,811.31,810.04,2.74852257]
[1754795901298,0.21473462,811.31,810.03,2.74852257]
[1754795903396,0.21473462,811.31,810.02,2.74852257]
[1754795904600,0.21473462,811.31,810.01,2.74852257]
[1754795905599,0.21473462,811.31,810.1,2.74852257]
[1754795906298,0.21473462,811.31,810.09,2.74852257]
[1754795906598,0.21473462,811.31,810.06,2.74852257]
[1754795907102,0.21473462,811.31,810.11,2.74852257]
[1754795907601,0.21473462,811.31,810.0,2.74852257]
[1754795908397,0.21473462,811.31,810.02,2.74852257]
[1754795909202,0.21473462,811.31,810.03,2.74852257]
[1754795911805,0.5,811.84,809.97,2.74852257]
[1754795912100,0.21469819,811.45,809.97,2.74852257]
[1754795912303,0.21469819,811.45,809.86,2.74852257]
[1754795912901,0.21469819,811.45,809.87,2.74852257]
[1754795913304,0.21469819,811.45,809.86,2.74852257]
[1754795914409,0.21469819,811.45,809.84,2.74852257]
[1754795915506,0.21469819,811.45,809.85,2.74852257]
[1754795916408,0.21469819,811.45,809.89,2.74852257]
[1754795917403,0.21469819,811.45,809.9,2.74852257]
[1754795918003,0.21469819,811.45,809.86,2.74852257]
[1754795918908,0.5,811.96,809.86,2.74852257]
[1754795919109,1.10577159,812.77,809.86,2.74852257]
[1754795919110,0.5,812.14,809.86,2.74852257]
[1754795919405,0.21467236,811.66,809.86,2.74852257]
[1754795919606,0.21467236,811.66,809.82,1.393]
[1754795919607,0.21467236,811.66,809.96,2.74852257]
[1754795920109,0.21467236,811.66,809.94,2.74852257]
[1754795920709,0.21467236,811.66,809.99,2.74852257]
[1754795921611,0.21467236,811.66,810.01,2.74852257]
[1754795922210,0.21467236,811.66,810.02,2.74852257]
[1754795922706,0.21467236,811.66,810.01,2.74852257]
[1754795923307,0.21467236,811.66,810.05,2.74852257]
[1754795923511,0.344,812.19,810.05,2.74852257]
[1754795923709,0.21463132,811.76,810.43,2.74852257]
[1754795925208,0.21463132,811.76,810.45,2.74852257]
[1754795926408,0.21463132,811.76,810.47,2.74852257]
[1754795927306,0.21463132,811.76,810.49,2.74852257]
[1754795928615,0.21463132,811.76,810.51,2.74852257]
[1754795929514,0.21463132,811.76,810.52,2.74852257]
[1754795930013,0.21463132,811.76,810.51,2.74852257]
[1754795930509,0.21463132,811.76,810.54,2.74852257]
[1754795932113,0.21463132,811.76,810.56,2.74852257]
[1754795932410,0.5,812.23,810.56,2.74852257]
[1754795932616,0.5,812.37,810.49,2.74852257]
[1754795932914,0.21458037,811.87,810.49,2.74852257]
[1754795933613,0.21458037,811.87,810.64,2.74852257]
[1754795934209,0.21458037,811.87,810.68,2.74852257]
[1754795934914,0.21458037,811.87,810.69,2.74852257]
[1754795935210,0.21458037,811.87,810.75,2.74852257]
[1754795935713,0.21458037,811.87,810.72,2.74852257]
[1754795936313,0.21458037,811.87,810.82,2.74852257]
[1754795937316,0.21458037,811.87,811.03,2.74852257]
[1754795937912,0.21458037,811.87,811.11,2.74852257]
[1754795938315,0.21458037,811.87,811.15,2.74852257]
[1754795938810,0.21458037,811.87,810.97,2.74852257]
[1754795939315,0.21458037,811.87,811.01,2.74852257]
[1754795939815,0.21458037,811.87,811.0,2.74852257]
[1754795940016,0.5,812.37,811.0,2.74852257]
[1754795940311,0.21452481,812.0,811.0,2.74852257]
[1754795941517,0.21452481,812.0,811.02,2.74852257]
[1754795942718,0.21452481,812.0,810.89,2.74852257]
[1754795943114,0.21452481,812.0,810.9,2.74852257]
[1754795943515,0.21452481,812.0,810.86,2.74852257]
[1754795943719,0.5,812.47,810.86,2.74852257]
[1754795943720,0.5,812.6,810.86,2.74852257]
[1754795944016,0.21451291,812.11,810.68,3.85178554]
[1754795944517,0.21451291,812.11,810.6,1.525]
[1754795951126,0.348,812.58,810.6,1.525]
[1754795951320,0.2145096,812.2,810.6,1.525]
[1754795955430,0.2145096,812.2,810.08,2.74852257]
[1754795955724,0.2145096,812.2,810.07,2.74852257]
[1754795956625,0.2145096,812.2,809.64,3.85178554]
[1754795956626,0.2145096,812.2,810.05,2.74852257]
[1754795957026,0.2145096,812.2,810.1,2.74852257]
[1754795957627,0.2145096,812.2,810.09,2.74852257]
[1754795958128,0.2145096,812.2,810.06,2.74852257]
[1754795958629,0.2145096,812.2,810.05,2.74852257]
[1754795959226,0.2145096,812.2,810.09,2.74852257]
[1754795959627,0.2145096,812.2,810.08,2.74852257]
[1754795960225,0.2145096,812.2,810.09,2.74852257]
[1754795961329,0.2145096,812.2,810.34,2.74852257]
[1754795961829,0.2145096,812.2,810.33,2.74852257]
[1754795962228,0.2145096,812.2,810.4,2.74852257]
[1754795962825,0.2145096,812.2,810.41,2.74852257]
[1754795963530,0.2145096,812.2,810.42,2.74852257]
[1754795964330,0.2145096,812.2,810.47,2.74852257]
[1754795965532,0.2145096,812.2,810.49,2.74852257]
[1754795965932,0.2145096,812.2,810.5,2.74852257]
[1754795966533,0.2145096,812.2,810.53,2.74852257]
[1754795967631,0.2145096,812.2,810.56,2.74852257]
[1754795968132,0.2145096,812.2,810.61,2.74852257]
[1754795968738,0.2145096,812.2,810.72,2.74852257]
[1754795969234,0.2145096,812.2,810.76,2.74852257]
[1754795969734,0.2145096,812.2,810.83,2.74852257]
[1754795970133,0.2145096,812.2,810.9,2.74852257]
[1754795970738,0.2145096,812.2,810.91,2.74852257]
[1754795971238,0.2145096,812.2,811.01,2.74852257]
[1754795971736,0.2145096,812.2,811.03,2.74852257]
[1754795972236,0.2145096,812.2,811.12,2.74852257]
[1754795972737,0.2145096,812.2,811.1,2.74852257]
[1754795973340,0.2145096,812.2,811.16,2.74852257]
[1754795973843,0.2145096,812.2,811.12,2.74852257]
[1754795974338,0.2145096,812.2,811.25,2.74852257]
[1754795974943,0.2145096,812.2,811.26,2.74852257]
[1754795975339,0.2145096,812.2,811.38,2.74852257]
[1754795975844,0.2145096,812.2,811.37,2.74852257]
[1754795976543,0.2145096,812.2,811.38,2.74852257]
[1754795976939,0.2145096,812.2,811.18,2.74852257]
[1754795977343,0.2145096,812.2,811.08,2.74852257]
[1754795978745,0.2145096,812.2,811.02,2.74852257]
[1754795979245,0.2145096,812.2,811.17,2.74852257]
[1754795979944,0.2145096,812.2,811.34,2.74852257]
[1754795980344,0.2145096,812.2,811.35,2.74852257]
[1754795980839,0.2145096,812.2,811.05,3.85178554]
[1754795980840,0.2145096,812.2,811.39,2.74852257]
[1754795981544,0.2145096,812.2,811.12,3.85178554]
[1754795982041,0.2145096,812.2,811.09,2.74852257]
[1754795982442,0.2145096,812.2,811.14,2.74852257]
[1754795982945,0.2145096,812.2,811.13,2.74852257]
[1754795984145,0.2145096,812.2,811.14,2.74852257]
[1754795984542,0.2145096,812.2,811.1,2.74852257]
[1754795985043,0.2145096,812.2,811.07,2.74852257]
[1754795986042,0.2145096,812.2,811.06,2.74852257]
[1754795987149,0.2145096,812.2,811.05,2.74852257]
[1754795988749,0.2145096,812.2,810.88,2.74852257]
[1754795989250,0.2145096,812.2,811.08,2.74852257]
[1754795991848,0.2145096,812.2,811.09,2.74852257]
[1754795993449,0.2145096,812.2,811.07,2.74852257]
[1754795993849,0.2145096,812.2,810.89,2.74852257]
[1754795994446,0.2145096,812.2,810.96,2.74852257]
[1754795994950,0.2145096,812.2,811.0,2.74852257]
[1754795996046,0.2145096,812.2,811.01,2.74852257]
[1754795997146,0.2145096,812.2,811.0,2.74852257]
[1754795997647,0.2145096,812.2,811.01,2.74852257]
[1754795998150,0.2145096,812.2,811.0,2.74852257]
[1754795999252,0.2145096,812.2,811.19,2.74852257]
[1754796000750,0.2145096,812.2,811.2,2.74852257]
[1754796001951,0.2145096,812.2,810.9,2.74852257]
[1754796002855,0.2145096,812.2,811.02,2.74852257]
[1754796008055,0.2145096,812.2,811.03,2.74852257]
[1754796008756,0.2145096,812.2,811.22,2.74852257]
[1754796009153,0.2145096,812.2,811.21,2.74852257]
[1754796010154,0.2145096,812.2,811.24,2.74852257]
[1754796010655,0.2145096,812.2,811.23,2.74852257]
[1754796011151,0.2145096,812.2,811.2,2.74852257]
[1754796011656,0.2145096,812.2,811.39,2.74852257]
[1754796012752,0.2145096,812.2,811.37,2.74852257]
[1754796014762,0.82350531,813.11,811.45,2.74852257]
[1754796014957,0.348,812.75,811.45,2.74852257]
[1754796015161,0.21444021,812.29,811.45,2.74852257]
[1754796015365,0.5,812.77,811.27,2.74852257]
[1754796015566,0.21442898,812.3,811.27,2.74852257]
[1754796015863,0.5,812.77,811.27,2.74852257]
[1754796016062,0.21443955,812.31,811.27,2.74852257]
[1754796016268,0.21443955,812.31,810.87,3.85178554]
[1754796016469,0.5,812.83,810.69,2.74852257]
[1754796016665,0.2144085,812.4,810.69,2.74852257]
[1754796017064,0.82350531,813.48,810.69,2.74852257]
[1754796017268,0.21444615,812.52,810.69,2.74852257]
[1754796017464,0.5,813.0,811.37,2.74852257]
[1754796017765,0.21444087,812.43,811.37,2.74852257]
[1754796017971,0.5,813.0,811.61,2.74852257]
[1754796018370,0.21440189,812.43,811.5,2.74852257]
[1754796018566,0.5,813.0,811.5,2.74852257]
[1754796018771,0.21439331,812.43,811.5,2.74852257]
[1754796019068,1.66961012,813.74,811.12,3.85178554]
[1754796019069,0.5,812.93,811.48,2.74852257]
[1754796019365,0.21439331,812.43,811.42,2.74852257]
[1754796019571,0.5,812.93,811.42,2.74852257]
[1754796019767,0.21440321,812.43,811.42,2.74852257]
[1754796020072,0.5,812.93,811.42,2.74852257]
[1754796020365,0.5,812.88,811.33,2.74852257]
[1754796020670,0.5,812.8,811.21,2.74852257]
[1754796021167,0.5,812.8,811.3,2.74852257]
[1754796021470,0.21442831,812.43,811.3,2.74852257]
[1754796021667,0.21442831,812.43,811.57,2.74852257]
[1754796022165,0.21442831,812.43,811.58,2.74852257]
[1754796022670,0.21442831,812.43,811.36,2.74852257]
[1754796024270,0.21442831,812.43,811.37,2.74852257]
[1754796024668,0.21442831,812.43,811.45,2.74852257]
[1754796024971,0.82350531,813.45,811.45,2.74852257]
[1754796025171,0.21438472,812.56,811.45,2.74852257]
[1754796025369,0.5,813.02,811.42,2.74852257]
[1754796025568,0.21437812,812.56,811.42,2.74852257]
[1754796026273,0.21437812,812.56,811.41,2.74852257]
[1754796027374,0.21437812,812.56,811.19,2.74852257]
[1754796027671,0.5,813.08,811.19,2.74852257]
[1754796027870,0.21434643,812.66,811.22,2.74852257]
[1754796028470,0.21434643,812.66,811.5,2.74852257]
[1754796028874,0.21434643,812.66,811.1,1.184]
[1754796029779,0.5,813.17,811.1,1.184]
[1754796029973,0.21432861,812.75,811.1,1.184]
[1754796031978,0.21432861,812.75,811.2,2.74852257]
[1754796032678,0.21432861,812.75,811.54,2.74852257]
[1754796033579,0.21432861,812.75,811.51,2.74852257]
[1754796033974,0.21432861,812.75,811.17,2.74852257]
[1754796034574,0.21432861,812.75,811.13,2.74852257]
[1754796035179,0.21432861,812.75,811.23,2.74852257]
[1754796035577,0.21432861,812.75,811.26,2.74852257]
[1754796036179,0.21432861,812.75,811.25,2.74852257]
[1754796036381,0.5,813.24,811.25,2.74852257]
[1754796036579,0.5,813.34,811.1,1.184]
[1754796036781,0.21433191,812.9,811.1,1.184]
[1754796053997,0.21433191,812.9,810.96,2.74852257]
[1754796054394,0.21433191,812.9,811.34,2.74852257]
[1754796054797,0.21433191,812.9,811.28,2.74852257]
[1754796055996,0.21433191,812.9,811.29,2.74852257]
[1754796056400,0.21433191,812.9,811.31,2.74852257]
[1754796056900,0.21433191,812.9,811.3,2.74852257]
[1754796057499,0.21433191,812.9,811.29,2.74852257]
[1754796057896,0.21433191,812.9,811.28,2.74852257]
[1754796058501,0.21433191,812.9,811.3,2.74852257]
[1754796058998,0.21433191,812.9,811.1,2.74852257]
[1754796059198,0.5,812.8,811.1,2.74852257]
[1754796059501,0.5,812.8,811.11,2.74852257]
[1754796060001,0.5,812.64,811.18,2.74852257]
[1754796061304,0.5,812.74,811.09,2.74852257]
[1754796061702,0.5,812.88,811.02,2.74852257]
[1754796062103,0.21433191,812.9,811.06,2.74852257]
[1754796062701,0.21433191,812.9,811.46,2.74852257]
[1754796063207,0.21433191,812.9,811.5,2.74852257]
[1754796063814,0.21433191,812.9,811.42,2.74852257]
[1754796064006,0.21433191,812.9,811.33,2.74852257]
[1754796064506,0.21433191,812.9,811.22,2.74852257]
[1754796065101,0.5,812.76,811.23,2.74852257]
[1754796065605,0.5,812.76,811.24,2.74852257]
[1754796066102,0.5,812.77,811.26,2.74852257]
[1754796066603,0.5,812.77,811.32,2.74852257]
[1754796067010,0.5,812.86,811.32,2.74852257]
[1754796067208,0.5,812.86,811.34,2.74852257]
[1754796067708,0.5,812.86,811.37,2.74852257]
[1754796068205,0.5,812.86,811.36,2.74852257]
[1754796068709,0.5,812.86,811.32,2.74852257]
[1754796069210,0.5,812.86,811.26,2.74852257]
[1754796069907,0.5,812.86,811.31,2.74852257]
[1754796071312,0.5,812.86,811.32,2.74852257]
[1754796072310,0.5,812.86,811.29,2.74852257]
[1754796073406,0.5,812.86,811.3,2.74852257]
[1754796073909,0.5,812.86,811.29,2.74852257]
[1754796074407,0.5,812.86,811.3,2.74852257]
[1754796075509,0.5,812.86,811.24,2.74852257]
[1754796075910,0.21433191,812.9,811.25,2.74852257]
[1754796076514,0.21433191,812.9,811.3,2.74852257]
[1754796077714,0.21433191,812.9,811.29,2.74852257]
[1754796078116,0.21433191,812.9,811.3,2.74852257]
[1754796079017,0.81665384,812.89,811.1,2.74852257]
[1754796079316,0.81665384,812.88,811.1,2.74852257]
[1754796079518,0.81665384,812.87,811.1,2.74852257]
[1754796079718,0.81665384,812.86,811.1,2.74852257]
[1754796079915,0.81665384,812.85,811.1,2.74852257]
[1754796080115,0.81665384,812.84,811.1,2.74852257]
[1754796080319,0.81665384,812.83,811.1,2.74852257]
[1754796080618,0.81665384,812.82,811.1,2.74852257]
[1754796080817,0.81665384,812.81,811.1,2.74852257]
[1754796081015,0.81665384,812.8,811.1,2.74852257]
[1754796081219,0.21433191,812.9,811.04,2.74852257]
[1754796081520,0.81665281,812.89,811.04,2.74852257]
[1754796081718,0.81665281,812.88,811.0,1.574]
[1754796081915,0.81665281,812.87,811.0,1.574]
[1754796082116,0.81665281,812.86,811.0,1.574]
[1754796082316,0.81665281,812.85,811.0,1.574]
[1754796082517,0.81665281,812.84,811.0,1.574]
[1754796082715,0.81665281,812.83,811.0,1.574]
[1754796082920,0.21433191,812.9,811.0,1.574]
[1754796083120,0.81662255,812.89,811.0,1.574]
[1754796083417,0.81662255,812.88,811.0,1.574]
[1754796083716,0.81662255,812.87,811.0,1.574]
[1754796084024,0.21433191,812.9,811.0,1.574]
[1754796084219,0.81662776,812.89,811.0,1.574]
[1754796084418,0.81662776,812.88,811.0,1.574]
[1754796084715,0.81662776,812.87,811.0,1.574]
[1754796084921,0.21433191,812.9,811.0,1.574]
[1754796085120,0.8165963,812.89,811.0,1.574]
[1754796085322,0.8165963,812.88,811.0,1.574]
[1754796085523,0.8165963,812.87,811.0,1.574]
[1754796085724,0.21433191,812.9,811.0,1.574]
[1754796085923,0.81659897,812.89,811.0,1.574]
[1754796086222,0.81659897,812.88,811.0,1.574]
[1754796086420,0.81659897,812.87,811.0,1.574]
[1754796086622,0.21433191,812.9,811.0,1.574]
[1754796086827,0.81660177,812.89,811.0,1.574]
[1754796087026,0.81660177,812.88,811.0,1.574]
[1754796087326,0.81660177,812.87,811.0,1.574]
[1754796087622,0.21433191,812.9,811.0,1.574]
[1754796087826,0.81660669,812.89,811.0,1.574]
[1754796088022,0.81660669,812.88,811.0,1.574]
[1754796088326,0.81660669,812.87,811.0,1.574]
[1754796088526,0.21433191,812.9,811.0,1.574]
[1754796089028,0.21433191,812.9,811.32,2.74852257]
[1754796089528,0.21433191,812.9,811.33,2.74852257]
[1754796090022,0.21433191,812.9,811.32,2.74852257]
[1754796090627,0.21433191,812.9,811.34,2.74852257]
[1754796091025,0.21433191,812.9,811.35,2.74852257]
[1754796092525,0.21433191,812.9,811.36,2.74852257]
[1754796093831,0.21433191,812.9,811.37,2.74852257]
[1754796095235,0.21433191,812.9,811.38,2.74852257]
[1754796095836,0.21433191,812.9,811.44,2.74852257]
[1754796096336,0.21433191,812.9,811.56,2.74852257]
[1754796096836,0.21433191,812.9,811.55,2.74852257]
[1754796097237,0.21433191,812.9,811.57,2.74852257]
[1754796098436,0.21433191,812.9,811.59,2.74852257]
[1754796098834,0.21433191,812.9,811.68,2.74852257]
[1754796099334,0.21433191,812.9,811.67,2.74852257]
[1754796099934,0.21433191,812.9,811.37,3.85178554]
[1754796100435,0.21433191,812.9,811.38,2.74852257]
[1754796101437,0.21433191,812.9,811.36,2.74852257]
[1754796103037,0.21433191,812.9,811.25,1.336]
[1754796114348,0.21433191,812.9,811.39,2.74852257]
[1754796115057,0.21433191,812.9,811.54,2.74852257]
[1754796115248,0.21433191,812.9,811.25,1.336]
[1754796119955,0.21433191,812.9,811.36,2.74852257]
[1754796120555,0.21433191,812.9,811.35,2.74852257]
[1754796121058,0.21433191,812.9,811.25,4.08452257]
[1754796121554,0.21433191,812.9,811.25,1.336]
[1754796123057,0.21433191,812.9,811.27,2.74852257]
[1754796123560,0.21433191,812.9,811.62,2.74852257]
[1754796124161,0.21433191,812.9,811.73,2.74852257]
[1754796124759,0.21433191,812.9,811.31,2.74852257]
[1754796125158,0.21433191,812.9,811.51,2.74852257]
[1754796125759,0.21433191,812.9,811.45,2.74852257]
[1754796126766,0.21433191,812.9,811.44,2.74852257]
[1754796127366,0.21433191,812.9,811.45,2.74852257]
[1754796127763,0.21433191,812.9,811.43,2.74852257]
[1754796129468,0.21433191,812.9,811.29,2.74852257]
[1754796129869,0.21433191,812.9,811.25,1.336]
[1754796135074,0.21433191,812.9,811.25,4.08452257]
[1754796135368,0.5,813.38,811.25,4.08452257]
[1754796135565,0.79605055,813.37,811.25,4.08452257]
[1754796135767,0.21428439,813.23,811.25,1.336]
[1754796136169,0.21428439,813.23,811.44,2.74852257]
[1754796136669,0.21428439,813.23,811.87,2.74852257]
[1754796137069,0.21428439,813.23,812.04,2.74852257]
[1754796137467,0.21428439,813.23,812.02,2.74852257]
[1754796138172,0.21428439,813.23,812.68,1.64769779]
[1754796138770,0.21428439,813.23,812.73,1.64769779]
[1754796138969,0.21428439,813.23,812.63,1.64769779]
[1754796139167,0.21428439,813.23,812.74,1.64769779]
[1754796139374,0.21428439,813.23,812.78,1.64769779]
[1754796139571,0.21428439,813.23,812.79,1.64769779]
[1754796139772,0.21428439,813.23,812.76,1.64769779]
[1754796139972,0.21428439,813.23,812.69,1.64769779]
[1754796140368,0.21428439,813.23,812.68,1.64769779]
[1754796140773,0.21428439,813.23,812.69,1.64769779]
[1754796141270,0.21428439,813.23,812.64,1.64769779]
[1754796141573,0.21428439,813.23,812.55,1.64769779]
[1754796141769,0.21428439,813.23,812.53,1.64769779]
[1754796142373,0.21428439,813.23,812.54,1.64769779]
[1754796142868,0.21428439,813.23,812.53,1.64769779]
[1754796143372,0.21428439,813.23,812.55,1.64769779]
[1754796143876,0.21428439,813.23,812.56,1.64769779]
[1754796144373,0.21428439,813.23,812.54,1.64769779]
[1754796144775,0.21428439,813.23,812.53,1.64769779]
[1754796145274,0.21428439,813.23,812.5,1.64769779]
[1754796145771,0.21428439,813.23,812.43,1.64769779]
[1754796146074,0.21428439,813.23,812.44,1.64769779]
[1754796146270,0.21428439,813.23,812.45,1.64769779]
[1754796146872,0.21428439,813.23,812.46,1.64769779]
[1754796147073,0.21428439,813.23,812.45,1.64769779]
[1754796147273,0.21428439,813.23,812.46,1.64769779]
[1754796147470,0.21428439,813.23,812.48,1.64769779]
[1754796148275,0.21428439,813.23,812.49,1.64769779]
[1754796149074,0.21428439,813.23,812.38,1.64769779]
[1754796149373,0.21428439,813.23,812.37,1.64769779]
[1754796149974,0.21428439,813.23,812.31,1.64769779]
[1754796150880,0.21428439,813.23,812.3,1.64769779]
[1754796151379,0.21428439,813.23,812.43,1.64769779]
[1754796151687,0.21428439,813.23,812.35,1.64769779]
[1754796151880,0.21428439,813.23,812.36,1.64769779]
[1754796152381,0.21428439,813.23,812.46,1.64769779]
[1754796152982,0.21428439,813.23,812.49,1.64769779]